[Event "Titled Tuesday Blitz March 22 Late 2022"]
[White "Borodavkin, Anatoly"]
[Black "Stanisz, Patryk"]
[WhiteFideId "14150662"]
[BlackFideId "1123106"]
[WhiteElo "1845"]
[BlackElo "1876"]
[Result "1-0"]
[Round "09"]
[TimeControl "180+1"]
[Date "2022.03.22"]
[WhiteClock "0:01:50"]
[BlackClock "0:01:55"]

1. e4 {[%clk 0:03:00]}  c5 {[%clk 0:02:57]} 2. Nc3 {[%clk 0:03:00]}  a6 {[%clk 0:02:57]} 3. g3 {[%clk 0:03:00]}  b5 {[%clk 0:02:54]} 4. Bg2 {[%clk 0:03:01]}  Bb7 {[%clk 0:02:55]} 5. d3 {[%clk 0:03:00]}  g6 {[%clk 0:02:51]} 6. f4 {[%clk 0:02:59]}  d6 {[%clk 0:02:50]} 7. Nf3 {[%clk 0:02:58]}  Bg7 {[%clk 0:02:50]} 8. O-O {[%clk 0:02:58]}  e6 {[%clk 0:02:49]} 9. Be3 {[%clk 0:02:56]}  Ne7 {[%clk 0:02:48]} 10. e5 {[%clk 0:02:47]}  Nf5 {[%clk 0:02:41]} 11. Bf2 {[%clk 0:02:47]}  O-O {[%clk 0:02:36]} 12. exd6 {[%clk 0:02:42]}  Qxd6 {[%clk 0:02:31]} 13. Ne4 {[%clk 0:02:38]}  Bxe4 {[%clk 0:02:28]} 14. dxe4 {[%clk 0:02:38]}  Nd4 {[%clk 0:02:28]} 15. e5 {[%clk 0:02:21]}  Nxf3+ {[%clk 0:02:20]} 16. Qxf3 {[%clk 0:02:19]}  Qd2 {[%clk 0:02:13]} 17. Qxa8 {[%clk 0:02:16]}  Nd7 {[%clk 0:02:13]} 18. Qc6 {[%clk 0:02:08]}  Nb8 {[%clk 0:02:04]} 19. Qxc5 {[%clk 0:02:05]}  Rd8 {[%clk 0:02:03]} 20. Rad1 {[%clk 0:01:57]}  Qxd1 {[%clk 0:02:02]} 21. Rxd1 {[%clk 0:01:57]}  Rxd1+ {[%clk 0:02:01]} 22. Bf1 {[%clk 0:01:58]}  Rd8 {[%clk 0:02:02]} 23. Qc7 {[%clk 0:01:52]}  Re8 {[%clk 0:01:55]} 24. Ba7 {[%clk 0:01:50]} 1-0


[Site "https://www.chess.com"]

[Event "Titled Tuesday Blitz March 22 Late 2022"]
[White "Costachi, Mihnea"]
[Black "Rastbod, Ali"]
[WhiteFideId "1217518"]
[BlackFideId "12567477"]
[WhiteElo "2464"]
[BlackElo "2200"]
[Result "1-0"]
[Round "09"]
[TimeControl "180+1"]
[Date "2022.03.22"]
[WhiteClock "0:01:11"]
[BlackClock "0:00:07"]

1. d4 {[%clk 0:03:00]}  Nf6 {[%clk 0:02:59]} 2. c4 {[%clk 0:03:01]}  e6 {[%clk 0:03:00]} 3. Nf3 {[%clk 0:03:01]}  Bb4+ {[%clk 0:02:59]} 4. Bd2 {[%clk 0:03:01]}  Qe7 {[%clk 0:02:59]} 5. g3 {[%clk 0:03:00]}  b6 {[%clk 0:02:59]} 6. Nc3 {[%clk 0:03:00]}  Bb7 {[%clk 0:02:59]} 7. Bg2 {[%clk 0:03:00]}  O-O {[%clk 0:02:59]} 8. O-O {[%clk 0:03:01]}  d6 {[%clk 0:03:00]} 9. Re1 {[%clk 0:03:00]}  Bxc3 {[%clk 0:02:59]} 10. Bxc3 {[%clk 0:03:00]}  Ne4 {[%clk 0:03:00]} 11. Rc1 {[%clk 0:03:00]}  Nd7 {[%clk 0:02:59]} 12. Qc2 {[%clk 0:03:00]}  f5 {[%clk 0:02:59]} 13. b3 {[%clk 0:02:59]}  c5 {[%clk 0:02:44]} 14. Bb2 {[%clk 0:02:58]}  Rad8 {[%clk 0:02:42]} 15. Nd2 {[%clk 0:02:53]}  Ndf6 {[%clk 0:02:42]} 16. f3 {[%clk 0:02:49]}  Nxd2 {[%clk 0:02:41]} 17. Qxd2 {[%clk 0:02:50]}  e5 {[%clk 0:02:39]} 18. e3 {[%clk 0:02:41]}  e4 {[%clk 0:01:52]} 19. f4 {[%clk 0:02:38]}  d5 {[%clk 0:01:52]} 20. Qc2 {[%clk 0:02:33]}  dxc4 {[%clk 0:01:48]} 21. Qxc4+ {[%clk 0:02:32]}  Bd5 {[%clk 0:01:46]} 22. Qa4 {[%clk 0:02:33]}  cxd4 {[%clk 0:01:40]} 23. Bxd4 {[%clk 0:02:21]}  Rc8 {[%clk 0:01:37]} 24. Bf1 {[%clk 0:02:21]}  Qe6 {[%clk 0:00:58]} 25. Ba6 {[%clk 0:02:12]}  Rc6 {[%clk 0:00:28]} 26. Bb5 {[%clk 0:02:04]}  Rxc1 {[%clk 0:00:28]} 27. Rxc1 {[%clk 0:02:05]}  a5 {[%clk 0:00:29]} 28. Ba6 {[%clk 0:01:52]}  h6 {[%clk 0:00:19]} 29. Rc7 {[%clk 0:01:52]}  Rf7 {[%clk 0:00:19]} 30. Rc8+ {[%clk 0:01:49]}  Kh7 {[%clk 0:00:19]} 31. Qb5 {[%clk 0:01:43]}  Nd7 {[%clk 0:00:15]} 32. Rc7 {[%clk 0:01:35]}  g5 {[%clk 0:00:12]} 33. Bc8 {[%clk 0:01:34]}  gxf4 {[%clk 0:00:08]} 34. Bxd7 {[%clk 0:01:23]}  Qg6 {[%clk 0:00:08]} 35. Qxd5 {[%clk 0:01:11]}  fxg3 {[%clk 0:00:07]} 36. Bxf5 {[%clk 0:01:11]}  gxh2+ {[%clk 0:00:07]} 37. Kxh2 {[%clk 0:01:12]}  Qxf5 {[%clk 0:00:07]} 38. Qxf5+ {[%clk 0:01:11]} 1-0


[Site "https://www.chess.com"]

[Event "Titled Tuesday Blitz March 22 Late 2022"]
[White "Cramling Bellon, Anna"]
[Black "Romero Ruscalleda, Josep"]
[WhiteFideId "32009232"]
[BlackFideId "2231859"]
[WhiteElo "1905"]
[BlackElo "2269"]
[Result "0-1"]
[Round "09"]
[TimeControl "180+1"]
[Date "2022.03.22"]
[WhiteClock "0:00:02"]
[BlackClock "0:00:24"]

1. d4 {[%clk 0:02:45]}  g6 {[%clk 0:03:00]} 2. c4 {[%clk 0:02:37]}  Bg7 {[%clk 0:03:00]} 3. e4 {[%clk 0:02:35]}  d6 {[%clk 0:03:01]} 4. Nc3 {[%clk 0:02:29]}  e5 {[%clk 0:03:01]} 5. d5 {[%clk 0:02:29]}  Ne7 {[%clk 0:03:00]} 6. h3 {[%clk 0:02:27]}  f5 {[%clk 0:03:00]} 7. Nf3 {[%clk 0:02:24]}  O-O {[%clk 0:02:59]} 8. Be2 {[%clk 0:02:23]}  a5 {[%clk 0:02:55]} 9. Bg5 {[%clk 0:02:19]}  Na6 {[%clk 0:02:53]} 10. Qd2 {[%clk 0:02:14]}  Nc5 {[%clk 0:02:52]} 11. exf5 {[%clk 0:02:04]}  Bxf5 {[%clk 0:02:52]} 12. O-O-O {[%clk 0:02:02]}  a4 {[%clk 0:02:46]} 13. g4 {[%clk 0:01:57]}  Ne4 {[%clk 0:02:27]} 14. Nxe4 {[%clk 0:01:47]}  Bxe4 {[%clk 0:02:27]} 15. Qe3 {[%clk 0:01:47]}  Bxf3 {[%clk 0:02:25]} 16. Bxf3 {[%clk 0:01:47]}  Qd7 {[%clk 0:02:24]} 17. Be4 {[%clk 0:01:44]}  a3 {[%clk 0:02:22]} 18. b3 {[%clk 0:01:43]}  b5 {[%clk 0:02:21]} 19. c5 {[%clk 0:01:42]}  dxc5 {[%clk 0:02:21]} 20. Qxc5 {[%clk 0:01:31]}  Nc8 {[%clk 0:02:20]} 21. d6 {[%clk 0:01:24]}  Nxd6 {[%clk 0:02:14]} 22. Bc6 {[%clk 0:01:15]}  Qc8 {[%clk 0:01:56]} 23. Bxa8 {[%clk 0:01:07]}  Qxa8 {[%clk 0:01:56]} 24. Qd5+ {[%clk 0:01:07]}  Qxd5 {[%clk 0:01:56]} 25. Rxd5 {[%clk 0:01:08]}  Rxf2 {[%clk 0:01:56]} 26. Rd2 {[%clk 0:00:56]}  Rf3 {[%clk 0:01:49]} 27. Be7 {[%clk 0:00:45]}  Ne4 {[%clk 0:01:43]} 28. Re2 {[%clk 0:00:42]}  Nc3 {[%clk 0:01:39]} 29. Rc2 {[%clk 0:00:38]}  e4 {[%clk 0:01:27]} 30. Bxa3 {[%clk 0:00:34]}  Kf7 {[%clk 0:01:09]} 31. Bb4 {[%clk 0:00:33]}  Nd5 {[%clk 0:01:09]} 32. Ba5 {[%clk 0:00:25]}  b4 {[%clk 0:01:03]} 33. Bxc7 {[%clk 0:00:21]}  Bh6+ {[%clk 0:01:01]} 34. Kd1 {[%clk 0:00:16]}  Nc3+ {[%clk 0:00:59]} 35. Ke1 {[%clk 0:00:15]}  Ke6 {[%clk 0:00:52]} 36. Bb6 {[%clk 0:00:10]}  Bf4 {[%clk 0:00:47]} 37. Bc5 {[%clk 0:00:06]}  Bg3+ {[%clk 0:00:46]} 38. Kd2 {[%clk 0:00:06]}  Nd5 {[%clk 0:00:43]} 39. Rc4 {[%clk 0:00:05]}  Bf4+ {[%clk 0:00:40]} 40. Ke2 {[%clk 0:00:05]}  Nc3+ {[%clk 0:00:39]} 41. Ke1 {[%clk 0:00:05]}  Nxa2 {[%clk 0:00:36]} 42. Bxb4 {[%clk 0:00:04]}  Rxb3 {[%clk 0:00:29]} 43. Rxe4+ {[%clk 0:00:04]}  Kd5 {[%clk 0:00:29]} 44. Rxf4 {[%clk 0:00:04]}  Rb1+ {[%clk 0:00:29]} 45. Ke2 {[%clk 0:00:04]}  Rxh1 {[%clk 0:00:29]} 46. Bd2 {[%clk 0:00:03]}  Rh2+ {[%clk 0:00:28]} 47. Rf2 {[%clk 0:00:03]}  Rxh3 {[%clk 0:00:27]} 48. g5 {[%clk 0:00:03]}  Nc3+ {[%clk 0:00:26]} 49. Ke1 {[%clk 0:00:02]}  Ne4 {[%clk 0:00:25]} 50. Re2 {[%clk 0:00:02]}  Rh1# {[%clk 0:00:24]} 0-1


[Site "https://www.chess.com"]

[Event "Titled Tuesday Blitz March 22 Late 2022"]
[White "Ezat, Mohamed"]
[Black "Fishbein, Alexander"]
[WhiteFideId "10600906"]
[BlackFideId "2000377"]
[WhiteElo "2386"]
[BlackElo "2442"]
[Result "0-1"]
[Round "09"]
[TimeControl "180+1"]
[Date "2022.03.22"]
[WhiteClock "0:00:11"]
[BlackClock "0:00:13"]

1. d4 {[%clk 0:02:53]}  Nf6 {[%clk 0:02:59]} 2. c4 {[%clk 0:02:53]}  g6 {[%clk 0:02:59]} 3. Nc3 {[%clk 0:02:53]}  Bg7 {[%clk 0:03:00]} 4. e4 {[%clk 0:02:54]}  O-O {[%clk 0:03:00]} 5. Be2 {[%clk 0:02:55]}  d6 {[%clk 0:03:00]} 6. Bg5 {[%clk 0:02:55]}  c6 {[%clk 0:02:58]} 7. Qd2 {[%clk 0:02:54]}  a6 {[%clk 0:02:57]} 8. Nf3 {[%clk 0:02:52]}  b5 {[%clk 0:02:56]} 9. a3 {[%clk 0:02:53]}  bxc4 {[%clk 0:02:52]} 10. Bxc4 {[%clk 0:02:52]}  Nbd7 {[%clk 0:02:47]} 11. e5 {[%clk 0:02:51]}  dxe5 {[%clk 0:02:42]} 12. dxe5 {[%clk 0:02:50]}  Nb6 {[%clk 0:02:32]} 13. Ba2 {[%clk 0:02:39]}  Qxd2+ {[%clk 0:02:27]} 14. Nxd2 {[%clk 0:02:36]}  Ng4 {[%clk 0:02:18]} 15. f4 {[%clk 0:02:16]}  Ne3 {[%clk 0:01:50]} 16. Kf2 {[%clk 0:02:15]}  Nf5 {[%clk 0:01:50]} 17. g4 {[%clk 0:02:14]}  h6 {[%clk 0:01:43]} 18. gxf5 {[%clk 0:02:13]}  hxg5 {[%clk 0:01:43]} 19. fxg6 {[%clk 0:02:14]}  e6 {[%clk 0:01:33]} 20. Nf3 {[%clk 0:01:48]}  fxg6 {[%clk 0:01:23]} 21. Nxg5 {[%clk 0:01:41]}  Bxe5 {[%clk 0:01:22]} 22. Nxe6 {[%clk 0:01:40]}  Bxe6 {[%clk 0:01:21]} 23. Bxe6+ {[%clk 0:01:39]}  Kg7 {[%clk 0:01:22]} 24. f5 {[%clk 0:01:37]}  Rad8 {[%clk 0:01:15]} 25. Rad1 {[%clk 0:01:28]}  Rxd1 {[%clk 0:01:10]} 26. Rxd1 {[%clk 0:01:26]}  Bxh2 {[%clk 0:01:10]} 27. Kg2 {[%clk 0:01:19]}  Be5 {[%clk 0:01:10]} 28. Ne4 {[%clk 0:01:14]}  gxf5 {[%clk 0:01:02]} 29. Nc5 {[%clk 0:01:14]}  Bxb2 {[%clk 0:00:58]} 30. Bb3 {[%clk 0:01:13]}  Re8 {[%clk 0:00:45]} 31. a4 {[%clk 0:01:08]}  a5 {[%clk 0:00:38]} 32. Rd6 {[%clk 0:01:06]}  Ba3 {[%clk 0:00:34]} 33. Ne6+ {[%clk 0:00:59]}  Kh8 {[%clk 0:00:20]} 34. Rxc6 {[%clk 0:00:59]}  Nd7 {[%clk 0:00:20]} 35. Nf4 {[%clk 0:00:40]}  Ne5 {[%clk 0:00:20]} 36. Rc7 {[%clk 0:00:35]}  Bb4 {[%clk 0:00:18]} 37. Rb7 {[%clk 0:00:34]}  Re7 {[%clk 0:00:17]} 38. Rb6 {[%clk 0:00:30]}  Kg7 {[%clk 0:00:17]} 39. Nh5+ {[%clk 0:00:28]}  Kh7 {[%clk 0:00:15]} 40. Kh3 {[%clk 0:00:26]}  Ng6 {[%clk 0:00:14]} 41. Bc2 {[%clk 0:00:19]}  Re3+ {[%clk 0:00:14]} 42. Ng3 {[%clk 0:00:18]}  Nf4+ {[%clk 0:00:13]} 43. Kh4 {[%clk 0:00:17]}  Be7+ {[%clk 0:00:13]} 44. Rf6 {[%clk 0:00:11]}  Bxf6# {[%clk 0:00:13]} 0-1


[Site "https://www.chess.com"]

[Event "Titled Tuesday Blitz March 22 Late 2022"]
[White "Godzwon, Iwo"]
[Black "Oganian, Miran"]
[WhiteFideId "21802483"]
[BlackFideId "4122488"]
[WhiteElo "2201"]
[BlackElo "2357"]
[Result "1-0"]
[Round "09"]
[TimeControl "180+1"]
[Date "2022.03.22"]
[WhiteClock "0:00:14"]
[BlackClock "0:00:06"]

1. e4 {[%clk 0:03:00]}  e6 {[%clk 0:03:00]} 2. d4 {[%clk 0:02:58]}  d5 {[%clk 0:03:00]} 3. Nd2 {[%clk 0:02:57]}  Nc6 {[%clk 0:03:00]} 4. Ngf3 {[%clk 0:02:56]}  Nf6 {[%clk 0:03:00]} 5. e5 {[%clk 0:02:52]}  Nd7 {[%clk 0:03:00]} 6. Be2 {[%clk 0:02:50]}  Be7 {[%clk 0:03:00]} 7. Nf1 {[%clk 0:02:48]}  O-O {[%clk 0:03:00]} 8. Ne3 {[%clk 0:02:45]}  f6 {[%clk 0:03:01]} 9. exf6 {[%clk 0:02:45]}  Nxf6 {[%clk 0:03:02]} 10. O-O {[%clk 0:02:45]}  b6 {[%clk 0:03:01]} 11. c4 {[%clk 0:02:46]}  Bd6 {[%clk 0:03:01]} 12. a3 {[%clk 0:02:26]}  Bb7 {[%clk 0:03:01]} 13. Qc2 {[%clk 0:02:26]}  Ne4 {[%clk 0:03:00]} 14. cxd5 {[%clk 0:02:22]}  exd5 {[%clk 0:03:00]} 15. Nxd5 {[%clk 0:02:20]}  Nxd4 {[%clk 0:02:56]} 16. Nxd4 {[%clk 0:02:08]}  Bxd5 {[%clk 0:02:48]} 17. Bc4 {[%clk 0:02:08]}  Bxc4 {[%clk 0:02:44]} 18. Qxc4+ {[%clk 0:02:09]}  Kh8 {[%clk 0:02:44]} 19. Ne6 {[%clk 0:02:07]}  Bxh2+ {[%clk 0:02:06]} 20. Kxh2 {[%clk 0:02:06]}  Qh4+ {[%clk 0:02:06]} 21. Kg1 {[%clk 0:02:04]}  Rxf2 {[%clk 0:02:07]} 22. Bf4 {[%clk 0:00:46]}  Rxf1+ {[%clk 0:00:32]} 23. Rxf1 {[%clk 0:00:38]}  Ng3 {[%clk 0:00:31]} 24. Rf3 {[%clk 0:00:33]}  Qh1+ {[%clk 0:00:30]} 25. Kf2 {[%clk 0:00:33]}  Nf5 {[%clk 0:00:29]} 26. Qe4 {[%clk 0:00:23]}  Qh4+ {[%clk 0:00:11]} 27. Kg1 {[%clk 0:00:23]}  Re8 {[%clk 0:00:08]} 28. Qxf5 {[%clk 0:00:22]}  Qe1+ {[%clk 0:00:08]} 29. Rf1 {[%clk 0:00:23]}  Qxe6 {[%clk 0:00:08]} 30. Qxe6 {[%clk 0:00:22]}  Rxe6 {[%clk 0:00:09]} 31. Bxc7 {[%clk 0:00:23]}  h6 {[%clk 0:00:08]} 32. Bg3 {[%clk 0:00:21]}  Kh7 {[%clk 0:00:03]} 33. Rf7 {[%clk 0:00:21]}  a5 {[%clk 0:00:03]} 34. Rb7 {[%clk 0:00:21]}  Kg6 {[%clk 0:00:02]} 35. Bf2 {[%clk 0:00:21]}  Re2 {[%clk 0:00:02]} 36. Rxb6+ {[%clk 0:00:21]}  Kh5 {[%clk 0:00:03]} 37. Rb5+ {[%clk 0:00:22]}  g5 {[%clk 0:00:03]} 38. Kf1 {[%clk 0:00:17]}  Rc2 {[%clk 0:00:02]} 39. b3 {[%clk 0:00:17]}  Rb2 {[%clk 0:00:02]} 40. a4 {[%clk 0:00:18]}  Rb1+ {[%clk 0:00:02]} 41. Be1 {[%clk 0:00:18]}  Kg4 {[%clk 0:00:02]} 42. Kf2 {[%clk 0:00:18]}  h5 {[%clk 0:00:03]} 43. Bxa5 {[%clk 0:00:16]}  Rb2+ {[%clk 0:00:03]} 44. Kf1 {[%clk 0:00:17]}  h4 {[%clk 0:00:03]} 45. Be1 {[%clk 0:00:16]}  Kf4 {[%clk 0:00:03]} 46. Rb4+ {[%clk 0:00:15]}  Kf5 {[%clk 0:00:03]} 47. a5 {[%clk 0:00:14]}  g4 {[%clk 0:00:03]} 48. Bxh4 {[%clk 0:00:15]}  Ra2 {[%clk 0:00:02]} 49. Be1 {[%clk 0:00:14]}  Rxa5 {[%clk 0:00:01]} 50. Rf4+ {[%clk 0:00:14]}  Kxf4 {[%clk 0:00:01]} 51. Bxa5 {[%clk 0:00:14]}  Kg3 {[%clk 0:00:02]} 52. Be1+ {[%clk 0:00:14]}  Kh2 {[%clk 0:00:02]} 53. b4 {[%clk 0:00:15]}  Kh1 {[%clk 0:00:02]} 54. b5 {[%clk 0:00:15]}  g3 {[%clk 0:00:03]} 55. b6 {[%clk 0:00:14]}  Kh2 {[%clk 0:00:04]} 56. Bxg3+ {[%clk 0:00:14]}  Kh1 {[%clk 0:00:05]} 57. Bf2 {[%clk 0:00:13]}  Kh2 {[%clk 0:00:05]} 58. b7 {[%clk 0:00:13]}  Kh1 {[%clk 0:00:06]} 59. Be3 {[%clk 0:00:13]}  Kh2 {[%clk 0:00:06]} 60. b8=Q+ {[%clk 0:00:14]}  Kh1 {[%clk 0:00:06]} 61. Qh8# {[%clk 0:00:14]} 1-0


[Site "https://www.chess.com"]

[Event "Titled Tuesday Blitz March 22 Late 2022"]
[White "Hambleton, Aman"]
[Black "Swicarz, Maciej"]
[WhiteFideId "2606577"]
[BlackFideId "1113585"]
[WhiteElo "2552"]
[BlackElo "2057"]
[Result "1-0"]
[Round "09"]
[TimeControl "180+1"]
[Date "2022.03.22"]
[WhiteClock "0:00:05"]
[BlackClock "0:00:01"]

1. d4 {[%clk 0:02:58]}  f5 {[%clk 0:02:58]} 2. c4 {[%clk 0:02:44]}  Nf6 {[%clk 0:02:57]} 3. h4 {[%clk 0:02:41]}  b6 {[%clk 0:02:50]} 4. Nh3 {[%clk 0:02:25]}  Bb7 {[%clk 0:02:49]} 5. Nf4 {[%clk 0:02:23]}  e6 {[%clk 0:02:49]} 6. a3 {[%clk 0:02:13]}  Qe7 {[%clk 0:02:31]} 7. Nc3 {[%clk 0:02:08]}  d6 {[%clk 0:02:28]} 8. d5 {[%clk 0:02:07]}  e5 {[%clk 0:02:23]} 9. Ne6 {[%clk 0:02:07]}  Bc8 {[%clk 0:02:12]} 10. e4 {[%clk 0:01:49]}  fxe4 {[%clk 0:01:59]} 11. g4 {[%clk 0:01:29]}  Bxe6 {[%clk 0:01:52]} 12. dxe6 {[%clk 0:01:29]}  Qxe6 {[%clk 0:01:52]} 13. g5 {[%clk 0:01:28]}  Nfd7 {[%clk 0:01:31]} 14. Nd5 {[%clk 0:01:27]}  Kd8 {[%clk 0:01:20]} 15. Bh3 {[%clk 0:01:25]}  Qf7 {[%clk 0:01:16]} 16. Be3 {[%clk 0:00:44]}  c6 {[%clk 0:01:10]} 17. Nc3 {[%clk 0:00:44]}  Qxc4 {[%clk 0:01:09]} 18. Qg4 {[%clk 0:00:35]}  Be7 {[%clk 0:00:53]} 19. Rc1 {[%clk 0:00:19]}  d5 {[%clk 0:00:42]} 20. Qe6 {[%clk 0:00:11]}  Qb3 {[%clk 0:00:21]} 21. Nxe4 {[%clk 0:00:09]}  Qxb2 {[%clk 0:00:21]} 22. Nd6 {[%clk 0:00:08]}  Bxd6 {[%clk 0:00:17]} 23. Qxd6 {[%clk 0:00:08]}  d4 {[%clk 0:00:15]} 24. Bd2 {[%clk 0:00:06]}  Qb5 {[%clk 0:00:10]} 25. Be6 {[%clk 0:00:03]}  Re8 {[%clk 0:00:08]} 26. a4 {[%clk 0:00:03]}  Qxa4 {[%clk 0:00:06]} 27. O-O {[%clk 0:00:03]}  Re7 {[%clk 0:00:05]} 28. Bb4 {[%clk 0:00:03]}  c5 {[%clk 0:00:05]} 29. Bd2 {[%clk 0:00:02]}  Qc6 {[%clk 0:00:04]} 30. Qxc6 {[%clk 0:00:03]}  Nxc6 {[%clk 0:00:04]} 31. Bd5 {[%clk 0:00:03]}  Rc8 {[%clk 0:00:02]} 32. f4 {[%clk 0:00:03]}  e4 {[%clk 0:00:02]} 33. f5 {[%clk 0:00:04]}  e3 {[%clk 0:00:02]} 34. Be1 {[%clk 0:00:05]}  Re5 {[%clk 0:00:02]} 35. Bc4 {[%clk 0:00:05]}  Nb4 {[%clk 0:00:02]} 36. Bg3 {[%clk 0:00:05]}  Nc6 {[%clk 0:00:01]} 37. f6 {[%clk 0:00:05]} 1-0


[Site "https://www.chess.com"]

[Event "Titled Tuesday Blitz March 22 Late 2022"]
[White "Horak, Martin"]
[Black "Iskusnyh, Sergei"]
[WhiteFideId "367095"]
[BlackFideId "4120027"]
[WhiteElo "1997"]
[BlackElo "2492"]
[Result "0-1"]
[Round "09"]
[TimeControl "180+1"]
[Date "2022.03.22"]
[WhiteClock "0:00:01"]
[BlackClock "0:01:37"]

1. e4 {[%clk 0:03:00]}  e6 {[%clk 0:02:59]} 2. d4 {[%clk 0:02:48]}  d5 {[%clk 0:02:59]} 3. Nd2 {[%clk 0:02:48]}  c5 {[%clk 0:02:58]} 4. exd5 {[%clk 0:02:45]}  exd5 {[%clk 0:02:59]} 5. Bb5+ {[%clk 0:02:42]}  Nc6 {[%clk 0:02:59]} 6. Ngf3 {[%clk 0:02:42]}  cxd4 {[%clk 0:02:58]} 7. O-O {[%clk 0:02:40]}  Bd6 {[%clk 0:02:58]} 8. Nb3 {[%clk 0:02:28]}  Ne7 {[%clk 0:02:58]} 9. Nbxd4 {[%clk 0:02:27]}  O-O {[%clk 0:02:59]} 10. h3 {[%clk 0:02:18]}  Nxd4 {[%clk 0:02:56]} 11. Nxd4 {[%clk 0:02:15]}  Bc7 {[%clk 0:02:55]} 12. Bd3 {[%clk 0:02:03]}  Qd6 {[%clk 0:02:52]} 13. Nf3 {[%clk 0:02:02]}  Ng6 {[%clk 0:02:44]} 14. Re1 {[%clk 0:01:50]}  Bd7 {[%clk 0:02:41]} 15. Bg5 {[%clk 0:01:44]}  Rfe8 {[%clk 0:02:36]} 16. Qd2 {[%clk 0:01:42]}  h6 {[%clk 0:02:26]} 17. Be3 {[%clk 0:01:39]}  Rad8 {[%clk 0:02:04]} 18. Bd4 {[%clk 0:01:38]}  Nh4 {[%clk 0:02:01]} 19. Ne5 {[%clk 0:01:15]}  f6 {[%clk 0:01:56]} 20. Bc5 {[%clk 0:00:07]}  Qxc5 {[%clk 0:01:43]} 21. Nxd7 {[%clk 0:00:07]}  Qd6 {[%clk 0:01:41]} 22. Rxe8+ {[%clk 0:00:05]}  Rxe8 {[%clk 0:01:41]} 23. Nxf6+ {[%clk 0:00:01]}  Qxf6 {[%clk 0:01:37]} 0-1


[Site "https://www.chess.com"]

[Event "Titled Tuesday Blitz March 22 Late 2022"]
[White "Kamsky, Gata"]
[Black "Domingo Nunez, Alejandro"]
[WhiteFideId "2000024"]
[BlackFideId "22245561"]
[WhiteElo "2645"]
[BlackElo "2215"]
[Result "1-0"]
[Round "09"]
[TimeControl "180+1"]
[Date "2022.03.22"]
[WhiteClock "0:01:08"]
[BlackClock "0:00:04"]

1. d4 {[%clk 0:03:00]}  g6 {[%clk 0:03:00]} 2. h4 {[%clk 0:03:00]}  h5 {[%clk 0:02:59]} 3. Nf3 {[%clk 0:02:58]}  Bg7 {[%clk 0:03:00]} 4. Ng5 {[%clk 0:02:58]}  d5 {[%clk 0:03:00]} 5. c3 {[%clk 0:02:57]}  c6 {[%clk 0:02:58]} 6. Bf4 {[%clk 0:02:50]}  Nd7 {[%clk 0:02:56]} 7. e4 {[%clk 0:02:46]}  dxe4 {[%clk 0:02:56]} 8. Bc4 {[%clk 0:02:37]}  Nh6 {[%clk 0:02:51]} 9. Bxf7+ {[%clk 0:02:33]}  Nxf7 {[%clk 0:02:44]} 10. Ne6 {[%clk 0:02:34]}  Nf6 {[%clk 0:02:33]} 11. Nxd8 {[%clk 0:02:33]}  Nxd8 {[%clk 0:02:30]} 12. Nd2 {[%clk 0:02:29]}  Bg4 {[%clk 0:02:29]} 13. Qc2 {[%clk 0:02:23]}  Bf5 {[%clk 0:02:29]} 14. Qb3 {[%clk 0:02:22]}  Nd5 {[%clk 0:02:23]} 15. Be5 {[%clk 0:02:18]}  Bxe5 {[%clk 0:02:14]} 16. dxe5 {[%clk 0:02:18]}  e3 {[%clk 0:02:15]} 17. Nf3 {[%clk 0:02:10]}  b5 {[%clk 0:01:40]} 18. O-O {[%clk 0:02:08]}  Ne6 {[%clk 0:01:38]} 19. a4 {[%clk 0:01:53]}  Bd3 {[%clk 0:01:32]} 20. Rfe1 {[%clk 0:01:50]}  exf2+ {[%clk 0:01:28]} 21. Kxf2 {[%clk 0:01:50]}  Bc4 {[%clk 0:01:29]} 22. Qc2 {[%clk 0:01:49]}  Ndf4 {[%clk 0:01:29]} 23. Rad1 {[%clk 0:01:47]}  Nc5 {[%clk 0:01:22]} 24. Kg3 {[%clk 0:01:40]}  O-O {[%clk 0:01:05]} 25. Rd4 {[%clk 0:01:36]}  Bd3 {[%clk 0:00:52]} 26. Qd1 {[%clk 0:01:32]}  Ne2+ {[%clk 0:00:21]} 27. Rxe2 {[%clk 0:01:31]}  Bxe2 {[%clk 0:00:22]} 28. Qxe2 {[%clk 0:01:30]}  Ne6 {[%clk 0:00:23]} 29. Rd7 {[%clk 0:01:26]}  Rf7 {[%clk 0:00:22]} 30. Qe4 {[%clk 0:01:25]}  Raf8 {[%clk 0:00:19]} 31. Qxc6 {[%clk 0:01:23]}  Nf4 {[%clk 0:00:19]} 32. axb5 {[%clk 0:01:21]}  Ne2+ {[%clk 0:00:10]} 33. Kf2 {[%clk 0:01:20]}  Nf4 {[%clk 0:00:09]} 34. e6 {[%clk 0:01:20]}  Rf6 {[%clk 0:00:09]} 35. Rxe7 {[%clk 0:01:20]}  Nd3+ {[%clk 0:00:07]} 36. Ke3 {[%clk 0:01:18]}  Nf4 {[%clk 0:00:07]} 37. Ng5 {[%clk 0:01:16]}  Rf5 {[%clk 0:00:05]} 38. Rf7 {[%clk 0:01:09]}  Rd8 {[%clk 0:00:04]} 39. Rxf5 {[%clk 0:01:08]} 1-0


[Site "https://www.chess.com"]

[Event "Titled Tuesday Blitz March 22 Late 2022"]
[White "Karttunen, Mika"]
[Black "Weetik, Vjacheslav"]
[WhiteFideId "502081"]
[BlackFideId "4153472"]
[WhiteElo "2343"]
[BlackElo "2469"]
[Result "0-1"]
[Round "09"]
[TimeControl "180+1"]
[Date "2022.03.22"]
[WhiteClock "0:00:01"]
[BlackClock "0:00:16"]

1. e4 {[%clk 0:03:00]}  c6 {[%clk 0:02:57]} 2. d4 {[%clk 0:03:00]}  d5 {[%clk 0:02:57]} 3. e5 {[%clk 0:03:00]}  Bf5 {[%clk 0:02:57]} 4. h4 {[%clk 0:03:01]}  Qb6 {[%clk 0:02:57]} 5. Nc3 {[%clk 0:02:57]}  h6 {[%clk 0:02:57]} 6. g4 {[%clk 0:02:55]}  Bd7 {[%clk 0:02:56]} 7. h5 {[%clk 0:02:52]}  e6 {[%clk 0:02:54]} 8. f4 {[%clk 0:02:48]}  c5 {[%clk 0:02:53]} 9. Nf3 {[%clk 0:02:35]}  Nc6 {[%clk 0:02:46]} 10. Ne2 {[%clk 0:02:10]}  cxd4 {[%clk 0:02:36]} 11. Nexd4 {[%clk 0:02:10]}  Bc5 {[%clk 0:02:34]} 12. c3 {[%clk 0:02:09]}  Nge7 {[%clk 0:02:31]} 13. Rh2 {[%clk 0:01:56]}  f6 {[%clk 0:02:25]} 14. exf6 {[%clk 0:01:45]}  gxf6 {[%clk 0:02:25]} 15. Re2 {[%clk 0:01:39]}  e5 {[%clk 0:02:13]} 16. fxe5 {[%clk 0:01:34]}  fxe5 {[%clk 0:02:08]} 17. Nxe5 {[%clk 0:01:29]}  Nxe5 {[%clk 0:02:04]} 18. Rxe5 {[%clk 0:01:29]}  O-O-O {[%clk 0:01:57]} 19. Qe2 {[%clk 0:00:54]}  Nc6 {[%clk 0:01:54]} 20. Nxc6 {[%clk 0:00:53]}  Bxc6 {[%clk 0:01:53]} 21. Bh3 {[%clk 0:00:45]}  Rhe8 {[%clk 0:01:39]} 22. g5+ {[%clk 0:00:43]}  Kb8 {[%clk 0:01:35]} 23. Bf4 {[%clk 0:00:43]}  Ka8 {[%clk 0:01:24]} 24. O-O-O {[%clk 0:00:40]}  hxg5 {[%clk 0:01:23]} 25. Bxg5 {[%clk 0:00:39]}  d4 {[%clk 0:01:15]} 26. Bxd8 {[%clk 0:00:37]}  Rxd8 {[%clk 0:01:11]} 27. h6 {[%clk 0:00:25]}  Rh8 {[%clk 0:00:51]} 28. h7 {[%clk 0:00:20]}  a6 {[%clk 0:00:49]} 29. Bf5 {[%clk 0:00:20]}  dxc3 {[%clk 0:00:47]} 30. bxc3 {[%clk 0:00:05]}  Ba3+ {[%clk 0:00:45]} 31. Kd2 {[%clk 0:00:05]}  Rd8+ {[%clk 0:00:37]} 32. Bd3 {[%clk 0:00:05]}  Qb2+ {[%clk 0:00:32]} 33. Ke1 {[%clk 0:00:05]}  Qxc3+ {[%clk 0:00:32]} 34. Kf1 {[%clk 0:00:05]}  Bc5 {[%clk 0:00:18]} 35. Rxc5 {[%clk 0:00:01]}  Qxc5 {[%clk 0:00:18]} 36. Qf2 {[%clk 0:00:01]}  Qh5 {[%clk 0:00:16]} 0-1


[Site "https://www.chess.com"]